[Event "Pan-AM College-chT 2018"]
[Site "Burlingame"]
[Date "2018.11.23"]
[Round "2"]
[White "Lee, Addison"]
[Black "Santanna, Paulo"]
[Result "1/2-1/2"]
[ECO "E45"]
[WhiteElo "1944"]
[BlackElo "1900"]
[Annotator "NA RC"]
[PlyCount "111"]
[EventDate "2018.12.28"]
[EventType "swiss"]
[EventCountry "USA"]
[SourceTitle "playchess.com"]
[Source "ChessBase"]
[SourceQuality "1"]
[TimeControl "5400+30"]

1. d4 {[%emt 0:00:00]} Nf6 {[%emt 0:00:00]} 2. c4 {[%emt 0:00:00]} e6 {[%emt 0:00:00]} 3. Nc3 {[%emt 0:00:00]} Bb4 {[%emt 0:00:00]} 4. e3 {[%emt 0:00:00]} b6 {[%emt 0:00:00]} 5. Nge2 {[%emt 0:00:00]} Ba6 {[%emt 0:00:00]} 6. a3 {[%emt 0:00:00]} Bxc3+ {[%emt 0:00:00]} 7. Nxc3 {[%emt 0:00:00]} d5 {[%emt 0:00:00]} 8. Qf3 {[%emt 0:00:00]} O-O {[%emt 0:00:00]} 9. Be2 {[%emt 0:00:00]} Nbd7 {[%emt 0:00:00]} 10. cxd5 {[%emt 0:00:00]} Bxe2 {[%emt 0:00:00]} 11. Kxe2 {[%emt 0:00:00]} e5 {[%emt 0:00:00]} 12. Rd1 {[%emt 0:00:00]} Qe7 {[%emt 0:00:00]} 13. Kf1 {[%emt 0:00:00]} Rad8 {[%emt 0:00:00]} 14. b3 {[%emt 0:00:00]} exd4 {[%emt 0:00:00]} 15. Rxd4 {[%emt 0:00:00]} Nc5 {[%emt 0:00:00]} 16. Rb1 {[%emt 0:00:00]} a5 {[%emt 0:05:07]} 17. a4 {[%emt 0:08:14]} Rfe8 {[%emt 0:04:19]} 18. Ba3 {[%emt 0:01:06]} Nfd7 {[%emt 0:14:43]} 19. g3 {[%emt 0:07:40]} Ne5 {[%emt 0:02:36]} 20. Qe2 {[%emt 0:01:47]} Qf6 {[%emt 0:07:57]} 21. Kg2 {[%emt 0:05:21]} Nc6 {[%emt 0:14:41]} 22. Bxc5 {[%emt 0:22:38]} bxc5 {[%emt 0:00:50]} 23. Rc4 {[%emt 0:07:01]} Nd4 {[%emt 0:10:46]} 24. Qg4 {[%emt 0:00:55]} Nf5 {[%emt 0:04:57]} 25. Qf3 {[%emt 0:03:56]} Qg6 {[%emt 0:01:37]} 26. Rc1 {[%emt 0:06:02]} h5 {[%emt 0:03:29]} 27. h4 {[%emt 0:02:20]} c6 {[%emt 0:02:12]} 28. Rf4 {[%emt 0:04:07]} Ne7 {[%emt 0:07:06]} 29. dxc6 {[%emt 0:01:07]} Nxc6 {[%emt 0:00:46]} 30. Rf5 {[%emt 0:02:12]} Ne5 {[%emt 0:08:44]} 31. Qxh5 {[%emt 0:04:40]} Qc6+ {[%emt 0:00:46]} 32. e4 {[%emt 0:02:45]} g6 {[%emt 0:00:55]} 33. Qg5 {[%emt 0:00:33]} Nd3 {[%emt 0:05:27]} 34. Rd1 {[%emt 0:00:40]} c4 {[%emt 0:01:58]} 35. Nd5 {[%emt 0:06:36]} Rd6 {[%emt 0:04:20]} 36. Rf3 {[%emt 0:05:23]} Rxe4 {[%emt 0:03:02]} 37. Nf6+ {[%emt 0:01:55]} Rxf6 {[%emt 0:00:55]} 38. Qxf6 {[%emt 0:00:30]} Nf4+ {[%emt 0:00:30]} 39. Qxf4 {[%emt 0:04:38]} Rxf4 {[%emt 0:00:30]} 40. gxf4 {[%emt 0:00:33]} c3 {[%emt 0:01:15]} 41. Rc1 {[%emt 0:02:42]} c2 {[%emt 0:00:49]} 42. Kg3 {[%emt 0:00:57]} Kg7 {[%emt 0:00:00]} 43. Re3 {[%emt 0:00:00]} Kh6 {[%emt 0:00:00]} 44. f3 {[%emt 0:00:00]} Qc5 {[%emt 0:00:00]} 45. Re2 {[%emt 0:00:00]} Qc3 {[%emt 0:00:00]} 46. Rexc2 {[%emt 0:00:00]} Qxb3 {[%emt 0:00:00]} 47. Rc7 {[%emt 0:00:00]} Kg7 {[%emt 0:00:00]} 48. Ra7 {[%emt 0:00:00]} Qxa4 {[%emt 0:00:00]} 49. Rcc7 {[%emt 0:00:00]} Qa2 {[%emt 0:00:00]} 50. Rc5 {[%emt 0:00:00]} Qa1 {[%emt 0:00:00]} 51. Rcxa5 {[%emt 0:00:00]} Qg1+ {[%emt 0:00:00]} 52. Kh3 {[%emt 0:00:00]} Qh1+ {[%emt 0:00:00]} 53. Kg3 {[%emt 0:00:00]} Qg1+ {[%emt 0:00:35]} 54. Kh3 {[%emt 0:00:00]} Qf1+ {[%emt 0:01:02]} 55. Kg3 {[%emt 0:00:00]} Qg1+ {[%emt 0:00:43]} 56. Kh3 {[%emt 0:00:00]} 1/2-1/2

[Event "Pan-AM College-chT 2018"]
[Site "Burlingame"]
[Date "2018.11.23"]
[Round "2"]
[White "Chang, Eliam"]
[Black "Wu, Derek"]
[Result "0-1"]
[ECO "B90"]
[WhiteElo "1784"]
[BlackElo "2023"]
[Annotator "NA RC"]
[PlyCount "30"]
[EventDate "2018.12.28"]
[EventType "swiss"]
[EventCountry "USA"]
[SourceTitle "playchess.com"]
[Source "ChessBase"]
[SourceQuality "1"]
[TimeControl "5400+30"]

1. e4 {[%emt 0:00:00]} c5 {[%emt 0:00:00]} 2. Nf3 {[%emt 0:00:00]} d6 {[%emt 0:00:00]} 3. d4 {[%emt 0:00:00]} cxd4 {[%emt 0:00:00]} 4. Nxd4 {[%emt 0:00:00]} Nf6 {[%emt 0:00:00]} 5. Nc3 {[%emt 0:00:00]} a6 {[%emt 0:00:00]} 6. f3 {[%emt 0:00:00]} e5 {[%emt 0:00:00]} 7. Nb3 {[%emt 0:00:00]} Be6 {[%emt 0:00:00]} 8. Be3 {[%emt 0:00:00]} Be7 {[%emt 0:00:00]} 9. Qd2 {[%emt 0:00:00]} h5 {[%emt 0:00:00]} 10. Nd5 {[%emt 0:00:00]} Nxd5 {[%emt 0:00:00]} 11. exd5 {[%emt 0:00:00]} Bf5 {[%emt 0:00:00]} 12. Na5 {[%emt 0:00:00]} Qc7 {[%emt 0:00:00]} 13. c3 {[%emt 0:02:34]} Qxa5 {[%emt 0:00:00]} 14. a4 {[%emt 0:02:48]} Nd7 {[%emt 0:00:00]} 15. Be2 {[%emt 0:00:53]} Nf6 {[%emt 0:00:00]} 0-1

[Event "Pan-AM College-chT 2018"]
[Site "Burlingame"]
[Date "2018.11.23"]
[Round "2"]
[White "Pruitt, Carvin"]
[Black "Wang, Henry"]
[Result "0-1"]
[ECO "D36"]
[WhiteElo "1777"]
[BlackElo "1965"]
[Annotator "NA RC"]
[PlyCount "71"]
[EventDate "2018.12.28"]
[EventType "swiss"]
[EventCountry "USA"]
[SourceTitle "playchess.com"]
[Source "ChessBase"]
[SourceQuality "1"]
[TimeControl "5400+30"]

1. d4 {[%emt 0:00:00]} d5 {[%emt 0:00:00]} 2. Nf3 {[%emt 0:00:00]} Nf6 {[%emt 0:00:00]} 3. c4 {[%emt 0:00:00]} e6 {[%emt 0:00:00]} 4. cxd5 {[%emt 0:00:00]} exd5 {[%emt 0:00:00]} 5. Nc3 {[%emt 0:00:00]} c6 {[%emt 0:00:00]} 6. Qc2 {[%emt 0:00:00]} Be7 {[%emt 0:00:00]} 7. Bg5 {[%emt 0:00:00]} Nbd7 {[%emt 0:00:00]} 8. e3 {[%emt 0:00:00]} h6 {[%emt 0:00:00]} 9. Bf4 {[%emt 0:00:00]} Nh5 {[%emt 0:00:00]} 10. Nxd5 {[%emt 0:00:00]} cxd5 {[%emt 0:00:00]} 11. Bc7 {[%emt 0:00:00]} Bb4+ {[%emt 0:00:00]} 12. Kd1 {[%emt 0:09:10]} Qe7 {[%emt 0:00:00]} 13. Rc1 {[%emt 0:11:28]} O-O {[%emt 0:00:00]} 14. Bd3 {[%emt 0:06:40]} Nhf6 {[%emt 0:00:00]} 15. Ke2 {[%emt 0:03:08]} Ne4 {[%emt 0:00:00]} 16. a3 {[%emt 0:00:34]} Bd6 {[%emt 0:00:00]} 17. Bxe4 {[%emt 0:02:25]} dxe4 {[%emt 0:00:00]} 18. Nd2 {[%emt 0:02:39]} f5 {[%emt 0:05:10]} 19. Qc4+ {[%emt 0:13:00]} Kh7 {[%emt 0:02:10]} 20. Qd5 {[%emt 0:02:35]} Bxc7 {[%emt 0:01:21]} 21. Rxc7 {[%emt 0:00:33]} Qg5 {[%emt 0:17:29]} 22. Rhc1 {[%emt 0:10:39]} Nb6 {[%emt 0:00:00]} 23. Qe5 {[%emt 0:03:57]} Qxg2 {[%emt 0:00:35]} 24. Re7 {[%emt 0:03:57]} Bd7 {[%emt 0:03:15]} 25. Rc7 {[%emt 0:01:00]} Rac8 {[%emt 0:00:44]} 26. Rexd7 {[%emt 0:21:04]} Nxd7 {[%emt 0:01:00]} 27. Rxd7 {[%emt 0:00:42]} Qg4+ {[%emt 0:00:35]} 28. f3 {[%emt 0:01:28]} Qg2+ {[%emt 0:02:20]} 29. Kd1 {[%emt 0:02:14]} Qg1+ {[%emt 0:00:30]} 30. Ke2 {[%emt 0:00:53]} Rc1 {[%emt 0:01:05]} 31. fxe4 {[%emt 0:01:47]} fxe4 {[%emt 0:02:50]} 32. Qxe4+ {[%emt 0:00:35]} Kh8 {[%emt 0:00:38]} 33. Qh4 {[%emt 0:03:21]} Qd1+ {[%emt 0:01:40]} 34. Kd3 {[%emt 0:00:41]} Qc2+ {[%emt 0:00:30]} 35. Ke2 {[%emt 0:00:53]} Rd1 {[%emt 0:00:30]} 36. d5 0-1

[Event "Pan-AM College-chT 2018"]
[Site "Burlingame"]
[Date "2018.12.29"]
[Round "4"]
[White "Bruzon Batista, Lazaro"]
[Black "Arribas Lopez, Angel"]
[Result "1-0"]
[ECO "B07"]
[WhiteElo "2664"]
[BlackElo "2472"]
[Annotator "ChessBase"]
[PlyCount "81"]
[EventDate "2018.12.28"]
[EventType "swiss"]
[EventCountry "USA"]
[SourceTitle "playchess.com"]
[Source "ChessBase"]
[SourceQuality "1"]
[TimeControl "5400+30"]

1. d4 {[%emt 0:00:00]} d6 {[%emt 0:00:00]} 2. e4 {[%emt 0:02:40]} Nf6 {[%emt 0:00:32]} 3. f3 {[%emt 0:01:26]} e6 {[%emt 0:04:00]} 4. Be3 {[%emt 0:06:19]} d5 {[%emt 0:03:13]} 5. e5 {[%emt 0:00:13]} Nfd7 {[%emt 0:00:29]} 6. f4 {[%emt 0:04:16]} Be7 {[%emt 0:07:02]} 7. Nf3 {[%emt 0:01:14]} b6 {[%emt 0:01:03]} 8. c3 {[%emt 0:11:41]} c5 {[%emt 0:10:13]} 9. Nbd2 {[%emt 0:03:05]} O-O {[%emt 0:02:23]} 10. Bd3 {[%emt 0:09:05]} Ba6 {[%emt 0:01:17]} 11. Bb1 {[%emt 0:00:07]} Nc6 {[%emt 0:13:48]} 12. h4 {[%emt 0:03:49]} f5 {[%emt 0:09:02]} 13. g4 {[%emt 0:05:20]} cxd4 {[%emt 0:06:33]} 14. cxd4 {[%emt 0:00:08]} g6 {[%emt 0:07:50]} 15. gxf5 {[%emt 0:05:31]} gxf5 {[%emt 0:00:59]} 16. Ng5 {[%emt 0:06:29]} Bxg5 {[%emt 0:00:22]} 17. hxg5 {[%emt 0:00:03]} Rf7 {[%emt 0:00:17]} 18. Nf3 {[%emt 0:01:33]} Nf8 {[%emt 0:02:28]} 19. a3 {[%emt 0:11:48]} Na5 {[%emt 0:04:26]} 20. b3 {[%emt 0:07:02]} Rc8 {[%emt 0:02:21]} 21. Bd2 {[%emt 0:00:06]} Qd7 {[%emt 0:01:09]} 22. a4 {[%emt 0:01:01]} Qe7 {[%emt 0:02:39]} 23. Ra2 {[%emt 0:01:10]} Nc6 {[%emt 0:00:32]} 24. Rc2 {[%emt 0:00:19]} Nb4 {[%emt 0:01:31]} 25. Rxc8 {[%emt 0:00:11]} Bxc8 {[%emt 0:00:06]} 26. Qc1 {[%emt 0:01:44]} Bb7 {[%emt 0:00:17]} 27. Kf2 {[%emt 0:01:18]} a5 {[%emt 0:00:08]} 28. Qe1 {[%emt 0:06:08]} Nc6 {[%emt 0:02:07]} 29. Bd3 {[%emt 0:00:38]} Qa3 {[%emt 0:00:09]} 30. Qb1 {[%emt 0:02:34]} Nb4 {[%emt 0:00:09]} 31. Bxb4 {[%emt 0:01:04]} Qxb4 {[%emt 0:00:03]} 32. Qc2 {[%emt 0:01:24]} Ng6 {[%emt 0:00:44]} 33. Ke3 {[%emt 0:00:09]} Rf8 {[%emt 0:01:34]} 34. Qc7 {[%emt 0:01:25]} Rf7 {[%emt 0:00:25]} 35. Qb8+ {[%emt 0:03:59]} Qf8 {[%emt 0:04:29]} 36. Qd6 {[%emt 0:00:33]} Qxd6 {[%emt 0:00:06]} 37. exd6 {[%emt 0:00:02]} Rd7 {[%emt 0:00:06]} 38. Rc1 {[%emt 0:00:16]} Nf8 {[%emt 0:01:08]} 39. Ne5 {[%emt 0:00:39]} Rxd6 {[%emt 0:00:10]} 40. Rc7 {[%emt 0:00:04]} Ba8 {[%emt 0:00:06]} 41. Rc8 {[%emt 0:00:22]} 1-0

[Event "Pan-AM College-chT 2018"]
[Site "Burlingame"]
[Date "2018.12.29"]
[Round "4"]
[White "Matsenko, Sergei"]
[Black "Dragun, Kamil"]
[Result "1/2-1/2"]
[ECO "E11"]
[WhiteElo "2524"]
[BlackElo "2578"]
[Annotator "ChessBase"]
[PlyCount "44"]
[EventDate "2018.12.28"]
[EventType "swiss"]
[EventCountry "USA"]
[SourceTitle "playchess.com"]
[Source "ChessBase"]
[SourceQuality "1"]
[TimeControl "5400+30"]

1. d4 {[%emt 0:00:00]} Nf6 {[%emt 0:03:28]} 2. c4 {[%emt 0:00:00]} e6 {[%emt 0:00:07]} 3. g3 {[%emt 0:00:00]} d5 {[%emt 0:00:24]} 4. Bg2 {[%emt 0:00:02]} Bb4+ {[%emt 0:00:23]} 5. Bd2 {[%emt 0:01:33]} Be7 {[%emt 0:00:10]} 6. Nf3 {[%emt 0:01:11]} c6 {[%emt 0:00:09]} 7. Qc2 {[%emt 0:01:02]} Nbd7 {[%emt 0:00:21]} 8. O-O {[%emt 0:00:25]} O-O {[%emt 0:00:15]} 9. Bf4 {[%emt 0:00:48]} b6 {[%emt 0:05:26]} 10. Nc3 {[%emt 0:04:56]} dxc4 {[%emt 0:02:36]} 11. Nd2 {[%emt 0:03:23]} Nd5 {[%emt 0:00:30]} 12. Nxc4 {[%emt 0:00:17]} Nxf4 {[%emt 0:00:12]} 13. gxf4 {[%emt 0:00:07]} Bb7 {[%emt 0:00:29]} 14. Rfd1 {[%emt 0:01:57]} Qc7 {[%emt 0:00:11]} 15. e3 {[%emt 0:00:05]} Rad8 {[%emt 0:00:04]} 16. Rac1 {[%emt 0:11:48]} c5 {[%emt 0:01:59]} 17. d5 {[%emt 0:00:57]} exd5 {[%emt 0:00:27]} 18. Nxd5 {[%emt 0:00:49]} Bxd5 {[%emt 0:00:07]} 19. Rxd5 {[%emt 0:00:01]} b5 {[%emt 0:00:18]} 20. Ne5 {[%emt 0:02:30]} Nxe5 {[%emt 0:00:06]} 21. Rxe5 {[%emt 0:00:02]} Bd6 {[%emt 0:00:10]} 22. Rd5 {[%emt 0:00:59]} Be7 {[%emt 0:00:09]} 1/2-1/2

[Event "Pan-AM College-chT 2018"]
[Site "Burlingame"]
[Date "2018.12.29"]
[Round "4"]
[White "Berczes, David"]
[Black "Nyzhnyk, Illya"]
[Result "0-1"]
[ECO "E97"]
[WhiteElo "2472"]
[BlackElo "2624"]
[Annotator "ChessBase"]
[PlyCount "80"]
[EventDate "2018.12.28"]
[EventType "swiss"]
[EventCountry "USA"]
[SourceTitle "playchess.com"]
[Source "ChessBase"]
[SourceQuality "1"]
[TimeControl "5400+30"]

1. Nf3 {[%emt 0:04:57]} Nf6 {[%emt 0:00:00]} 2. c4 {[%emt 0:00:04]} g6 {[%emt 0:00:00]} 3. Nc3 {[%emt 0:01:29]} Bg7 {[%emt 0:00:00]} 4. e4 {[%emt 0:02:07]} d6 {[%emt 0:00:00]} 5. d4 {[%emt 0:00:03]} O-O {[%emt 0:00:00]} 6. Be2 {[%emt 0:00:05]} e5 {[%emt 0:00:09]} 7. O-O {[%emt 0:00:05]} Nc6 {[%emt 0:00:03]} 8. Be3 {[%emt 0:03:51]} Ng4 {[%emt 0:00:16]} 9. Bg5 {[%emt 0:00:05]} f6 {[%emt 0:00:04]} 10. Bh4 {[%emt 0:00:25]} h5 {[%emt 0:00:49]} 11. h3 {[%emt 0:09:57]} Nh6 {[%emt 0:00:50]} 12. dxe5 {[%emt 0:10:07]} dxe5 {[%emt 0:00:16]} 13. Qb3 {[%emt 0:04:03]} Qe7 {[%emt 0:15:09]} 14. Nd5 {[%emt 0:06:32]} Qf7 {[%emt 0:00:05]} 15. Rad1 {[%emt 0:03:03]} Kh8 {[%emt 0:00:47]} 16. c5 {[%emt 0:12:26]} Ng8 {[%emt 0:00:52]} 17. Bg3 {[%emt 0:03:51]} Rb8 {[%emt 0:06:41]} 18. Nh4 {[%emt 0:17:21]} g5 {[%emt 0:01:39]} 19. Nf5 {[%emt 0:04:23]} Bxf5 {[%emt 0:07:13]} 20. exf5 {[%emt 0:00:12]} h4 {[%emt 0:00:03]} 21. Bh2 {[%emt 0:00:08]} Nge7 {[%emt 0:00:04]} 22. Nxe7 {[%emt 0:05:04]} Qxe7 {[%emt 0:00:04]} 23. Qf3 {[%emt 0:00:57]} Bh6 {[%emt 0:00:05]} 24. Bc4 {[%emt 0:01:56]} Rfd8 {[%emt 0:00:52]} 25. Qh5 {[%emt 0:02:32]} Qh7 {[%emt 0:00:01]} 26. a3 {[%emt 0:06:45]} Bf8 {[%emt 0:01:52]} 27. Qxh7+ {[%emt 0:00:30]} Kxh7 {[%emt 0:00:04]} 28. b4 {[%emt 0:00:24]} a5 {[%emt 0:00:03]} 29. Rb1 {[%emt 0:00:37]} axb4 {[%emt 0:12:05]} 30. axb4 {[%emt 0:00:05]} Ra8 {[%emt 0:00:02]} 31. Rfc1 {[%emt 0:00:54]} Ra4 {[%emt 0:00:41]} 32. b5 {[%emt 0:00:23]} Nd4 {[%emt 0:00:07]} 33. c6 {[%emt 0:00:37]} bxc6 {[%emt 0:00:56]} 34. bxc6 {[%emt 0:00:12]} Ba3 {[%emt 0:00:09]} 35. Rc3 {[%emt 0:00:22]} Bb4 {[%emt 0:02:33]} 36. Rd3 {[%emt 0:00:44]} Ba5 {[%emt 0:02:02]} 37. Bb3 {[%emt 0:00:43]} Rb8 {[%emt 0:00:46]} 38. Bxa4 {[%emt 0:00:29]} Rxb1+ {[%emt 0:00:05]} 39. Rd1 {[%emt 0:00:08]} Rb2 {[%emt 0:01:03]} 40. Rf1 {[%emt 0:00:52]} Nxf5 {[%emt 0:02:33]} 0-1

[Event "Pan-AM College-chT 2018"]
[Site "Burlingame"]
[Date "2018.12.30"]
[Round "5"]
[White "Shimanov, Aleksandr"]
[Black "Baryshpolets, Andrey"]
[Result "0-1"]
[ECO "D46"]
[WhiteElo "2611"]
[BlackElo "2578"]
[Annotator "ChessBase"]
[PlyCount "125"]
[EventDate "2018.12.28"]
[EventType "swiss"]
[EventCountry "USA"]
[SourceTitle "playchess.com"]
[Source "ChessBase"]
[SourceQuality "1"]
[TimeControl "5400+30"]

1. c4 {[%emt 0:00:00]} c6 {[%emt 0:00:38]} 2. Nf3 {[%emt 0:00:30]} d5 {[%emt 0:00:34]} 3. e3 {[%emt 0:00:07]} Nf6 {[%emt 0:00:24]} 4. Nc3 {[%emt 0:00:07]} e6 {[%emt 0:00:51]} 5. b3 {[%emt 0:00:12]} Nbd7 {[%emt 0:05:07]} 6. Bb2 {[%emt 0:00:47]} b6 {[%emt 0:08:23]} 7. d4 {[%emt 0:05:16]} Bb7 {[%emt 0:00:39]} 8. Bd3 {[%emt 0:00:08]} Be7 {[%emt 0:03:28]} 9. O-O {[%emt 0:03:15]} O-O {[%emt 0:00:19]} 10. Qe2 {[%emt 0:04:45]} c5 {[%emt 0:01:24]} 11. Rad1 {[%emt 0:01:10]} Re8 {[%emt 0:11:56]} 12. cxd5 {[%emt 0:12:06]} exd5 {[%emt 0:02:06]} 13. Ba6 {[%emt 0:00:54]} Qc8 {[%emt 0:02:38]} 14. Bxb7 {[%emt 0:00:46]} Qxb7 {[%emt 0:00:06]} 15. Qd3 {[%emt 0:00:08]} Rad8 {[%emt 0:04:11]} 16. dxc5 {[%emt 0:00:37]} Nxc5 {[%emt 0:00:20]} 17. Qb1 {[%emt 0:04:21]} b5 {[%emt 0:04:40]} 18. Nd4 {[%emt 0:05:45]} b4 {[%emt 0:01:31]} 19. Nce2 {[%emt 0:00:11]} Nfe4 {[%emt 0:04:30]} 20. Nf5 {[%emt 0:14:06]} Bf8 {[%emt 0:01:14]} 21. f3 {[%emt 0:03:32]} Nd6 {[%emt 0:14:25]} 22. Nf4 {[%emt 0:00:57]} Nb5 {[%emt 0:05:25]} 23. Nh5 {[%emt 0:11:30]} Nc3 {[%emt 0:02:02]} 24. Bxc3 {[%emt 0:00:28]} bxc3 {[%emt 0:00:05]} 25. Qc2 {[%emt 0:00:27]} Nd7 {[%emt 0:02:56]} 26. Nf4 {[%emt 0:08:57]} g6 {[%emt 0:02:13]} 27. Ng3 {[%emt 0:00:23]} Nf6 {[%emt 0:01:17]} 28. Qxc3 {[%emt 0:04:35]} Qb6 {[%emt 0:00:11]} 29. Kh1 {[%emt 0:02:28]} Rxe3 {[%emt 0:00:25]} 30. Qc2 {[%emt 0:00:20]} Qd6 {[%emt 0:03:42]} 31. Nfe2 {[%emt 0:01:39]} Bh6 {[%emt 0:03:27]} 32. Nd4 {[%emt 0:03:47]} Bf4 {[%emt 0:00:38]} 33. Qf2 {[%emt 0:01:04]} Rde8 {[%emt 0:02:28]} 34. Nge2 {[%emt 0:01:50]} Bh6 {[%emt 0:00:25]} 35. Qh4 {[%emt 0:01:40]} Bg7 {[%emt 0:02:05]} 36. Ng3 {[%emt 0:03:08]} Qa6 {[%emt 0:02:50]} 37. Nc2 {[%emt 0:02:37]} R3e5 {[%emt 0:01:34]} 38. Nb4 {[%emt 0:00:26]} Qb7 {[%emt 0:01:24]} 39. Nd3 {[%emt 0:00:36]} Re3 {[%emt 0:00:24]} 40. Qa4 {[%emt 0:00:50]} h5 {[%emt 0:01:27]} 41. Rfe1 {[%emt 0:01:06]} Rxe1+ {[%emt 0:01:06]} 42. Nxe1 {[%emt 0:00:11]} Qb6 {[%emt 0:01:12]} 43. Nd3 {[%emt 0:00:46]} Qe3 {[%emt 0:01:32]} 44. h3 {[%emt 0:01:36]} Bh6 {[%emt 0:01:32]} 45. Qb4 {[%emt 0:01:16]} Qg5 {[%emt 0:00:47]} 46. Nf1 {[%emt 0:00:53]} Re2 {[%emt 0:00:34]} 47. Ne1 {[%emt 0:00:39]} Rxa2 {[%emt 0:00:51]} 48. Qd4 {[%emt 0:00:27]} h4 {[%emt 0:01:09]} 49. Ra1 {[%emt 0:00:14]} Rxa1 {[%emt 0:00:48]} 50. Qxa1 {[%emt 0:00:01]} Nh5 {[%emt 0:00:31]} 51. Qxa7 {[%emt 0:00:45]} Qc1 {[%emt 0:00:22]} 52. Qf2 {[%emt 0:00:30]} Ng3+ {[%emt 0:00:34]} 53. Kg1 {[%emt 0:00:22]} d4 {[%emt 0:00:35]} 54. f4 {[%emt 0:00:50]} Qd1 {[%emt 0:00:31]} 55. Nxg3 {[%emt 0:00:57]} hxg3 {[%emt 0:00:06]} 56. Qxg3 {[%emt 0:00:29]} d3 {[%emt 0:00:30]} 57. Kh2 {[%emt 0:00:31]} d2 {[%emt 0:00:27]} 58. Nd3 {[%emt 0:00:20]} Qxb3 {[%emt 0:00:49]} 59. Nf2 {[%emt 0:00:17]} d1=Q {[%emt 0:00:19]} 60. Nxd1 {[%emt 0:00:02]} Qxd1 {[%emt 0:00:06]} 61. f5 {[%emt 0:00:03]} Qd4 {[%emt 0:00:33]} 62. Qb8+ {[%emt 0:01:47]} Kg7 {[%emt 0:00:14]} 63. Qb5 {[%emt 0:05:40]} 0-1

[Event "Pan-AM College-chT 2018"]
[Site "Burlingame"]
[Date "2018.12.30"]
[Round "6"]
[White "Bruzon Batista, Lazaro"]
[Black "Matsenko, Sergei"]
[Result "1-0"]
[ECO "C07"]
[WhiteElo "2664"]
[BlackElo "2524"]
[Annotator "RC"]
[PlyCount "115"]
[EventDate "2018.12.28"]
[EventType "swiss"]
[EventCountry "USA"]
[SourceTitle "playchess.com"]
[Source "ChessBase"]
[SourceQuality "1"]
[TimeControl "5400+30"]

1. e4 {[%emt 0:00:00]} e6 {[%emt 0:03:04]} 2. d4 {[%emt 0:01:39]} d5 {[%emt 0:00:03]} 3. Nd2 {[%emt 0:00:06]} c5 {[%emt 0:00:09]} 4. Ngf3 {[%emt 0:00:07]} cxd4 {[%emt 0:00:07]} 5. Nxd4 {[%emt 0:00:06]} Nf6 {[%emt 0:00:06]} 6. exd5 {[%emt 0:00:08]} Qxd5 {[%emt 0:00:03]} 7. Nb5 {[%emt 0:01:35]} Na6 {[%emt 0:00:20]} 8. a3 {[%emt 0:01:26]} Be7 {[%emt 0:00:44]} 9. Nc3 {[%emt 0:04:30]} Qd8 {[%emt 0:00:04]} 10. Qf3 {[%emt 0:02:17]} Nc7 {[%emt 0:00:03]} 11. Bd3 {[%emt 0:04:06]} O-O {[%emt 0:04:49]} 12. O-O {[%emt 0:01:14]} Ncd5 {[%emt 0:03:07]} 13. Nxd5 {[%emt 0:04:06]} Qxd5 {[%emt 0:02:17]} 14. Ne4 {[%emt 0:01:18]} Nxe4 {[%emt 0:13:21]} 15. Bxe4 {[%emt 0:00:10]} Qc5 {[%emt 0:00:32]} 16. Bxb7 {[%emt 0:18:47]} Bxb7 {[%emt 0:00:25]} 17. Qxb7 {[%emt 0:00:06]} Rab8 {[%emt 0:00:05]} 18. Qe4 {[%emt 0:00:11]} Rfc8 {[%emt 0:00:02]} 19. c3 {[%emt 0:01:04]} a5 {[%emt 0:02:18]} 20. Rd1 {[%emt 0:06:50]} Bf6 {[%emt 0:01:28]} 21. Be3 {[%emt 0:09:47]} Qc4 {[%emt 0:01:03]} 22. Qxc4 {[%emt 0:00:30]} Rxc4 {[%emt 0:00:03]} 23. Rd2 {[%emt 0:01:18]} a4 {[%emt 0:01:58]} 24. Rad1 {[%emt 0:01:29]} g5 {[%emt 0:00:36]} 25. Kf1 {[%emt 0:00:44]} Kg7 {[%emt 0:01:53]} 26. Rc2 {[%emt 0:04:03]} Kg6 {[%emt 0:03:20]} 27. Rd7 {[%emt 0:02:26]} h5 {[%emt 0:01:34]} 28. Ke2 {[%emt 0:04:42]} g4 {[%emt 0:05:05]} 29. g3 {[%emt 0:05:29]} Bg7 {[%emt 0:02:12]} 30. Bc1 {[%emt 0:09:41]} f5 {[%emt 0:04:20]} 31. Kd3 {[%emt 0:01:21]} Rbc8 {[%emt 0:03:03]} 32. Rb7 {[%emt 0:05:33]} Re4 {[%emt 0:01:15]} 33. Be3 {[%emt 0:00:01]} Bf8 {[%emt 0:06:20]} 34. Rd2 {[%emt 0:04:11]} h4 {[%emt 0:18:22]} 35. Kc2 {[%emt 0:01:36]} h3 {[%emt 0:01:16]} 36. Rd4 {[%emt 0:01:19]} Bc5 {[%emt 0:01:46]} 37. Rxe4 {[%emt 0:00:44]} fxe4 {[%emt 0:00:01]} 38. Kd2 {[%emt 0:01:14]} Bxe3+ {[%emt 0:01:48]} 39. fxe3 {[%emt 0:01:14]} Rf8 {[%emt 0:00:20]} 40. Ke2 {[%emt 0:00:04]} Rf3 {[%emt 0:00:09]} 41. Rd7 {[%emt 0:00:19]} e5 {[%emt 0:01:54]} 42. Rd5 {[%emt 0:00:36]} Kf5 {[%emt 0:00:20]} 43. Rd8 {[%emt 0:00:29]} Ke6 {[%emt 0:00:36]} 44. Ra8 {[%emt 0:00:32]} Kf7 {[%emt 0:00:50]} 45. c4 {[%emt 0:01:47]} Kg7 {[%emt 0:01:36]} 46. Ra7+ {[%emt 0:00:01]} Kg6 {[%emt 0:00:11]} 47. Rd7 {[%emt 0:00:31]} Rf8 {[%emt 0:00:38]} 48. Rd6+ {[%emt 0:00:48]} Kf7 {[%emt 0:00:58]} 49. c5 {[%emt 0:00:29]} Rc8 {[%emt 0:00:19]} 50. c6 {[%emt 0:00:34]} Ke7 {[%emt 0:00:00]} 51. Rd7+ {[%emt 0:00:20]} Ke6 {[%emt 0:00:02]} 52. Rh7 {[%emt 0:00:34]} Kd5 {[%emt 0:06:23]} 53. c7 {[%emt 0:00:10]} Kc4 {[%emt 0:01:42]} 54. Kd2 {[%emt 0:01:01]} Kb3 {[%emt 0:00:01]} 55. Kc1 {[%emt 0:00:06]} Rf8 {[%emt 0:00:04]} 56. Rd7 {[%emt 0:00:36]} Rc8 {[%emt 0:03:23]} 57. Rf7 {[%emt 0:00:05]} Rh8 {[%emt 0:02:26]} 58. Rf6 {[%emt 0:01:26]} 1-0